[Event "*** Titled Tuesday Blitz"]
[Site "Chess.com"]
[Date "2020.05.26"]
[Round "5"]
[White "rpragchess"]
[Black "lupta_robin"]
[Result "1/2-1/2"]
[WhiteElo "2832"]
[BlackElo "2623"]
[TimeControl "180+1"]
[EndTime "10:59:05 PDT"]
[Termination "Game drawn by stalemate"]

1. d4 {[%clk 0:03:00.9]} 1... d5 {[%clk 0:02:57.4]} 2. Bf4 {[%clk 0:02:59]} 2...
Nf6 {[%clk 0:02:53.5]} 3. e3 {[%clk 0:02:58.9]} 3... e6 {[%clk 0:02:53.5]} 4.
Nd2 {[%clk 0:02:57.8]} 4... Bd6 {[%clk 0:02:53.3]} 5. Bg3 {[%clk 0:02:57.5]}
5... c5 {[%clk 0:02:51.1]} 6. Ngf3 {[%clk 0:02:54.6]} 6... Nc6 {[%clk
0:02:47.1]} 7. c3 {[%clk 0:02:54.5]} 7... O-O {[%clk 0:02:39.6]} 8. Bd3 {[%clk
0:02:52.8]} 8... b6 {[%clk 0:02:31.4]} 9. e4 {[%clk 0:02:52.4]} 9... dxe4 {[%clk
0:02:21.3]} 10. Nxe4 {[%clk 0:02:42.2]} 10... Be7 {[%clk 0:01:53.1]} 11. Nxf6+
{[%clk 0:01:57.8]} 11... Bxf6 {[%clk 0:01:52.6]} 12. Be4 {[%clk 0:01:57.9]}
12... Bb7 {[%clk 0:01:48.1]} 13. dxc5 {[%clk 0:01:56.1]} 13... bxc5 {[%clk
0:01:41.6]} 14. O-O {[%clk 0:01:41.3]} 14... Qb6 {[%clk 0:01:32.8]} 15. Qc2
{[%clk 0:01:24.7]} 15... h6 {[%clk 0:01:27.5]} 16. Nd2 {[%clk 0:01:21.2]} 16...
Ba6 {[%clk 0:01:16.6]} 17. Rfe1 {[%clk 0:01:13.4]} 17... Rfd8 {[%clk 0:01:16.3]}
18. Rad1 {[%clk 0:01:09]} 18... Rac8 {[%clk 0:01:15.6]} 19. Nf3 {[%clk
0:01:00.7]} 19... Bb7 {[%clk 0:01:06.8]} 20. h3 {[%clk 0:00:43.7]} 20... Na5
{[%clk 0:00:48.4]} 21. Bxb7 {[%clk 0:00:39.6]} 21... Qxb7 {[%clk 0:00:46.5]} 22.
Nd2 {[%clk 0:00:28]} 22... Be7 {[%clk 0:00:38.9]} 23. Ne4 {[%clk 0:00:17.2]}
23... Qb6 {[%clk 0:00:29.4]} 24. b3 {[%clk 0:00:13.4]} 24... c4 {[%clk
0:00:18.7]} 25. b4 {[%clk 0:00:12.5]} 25... Nb7 {[%clk 0:00:18.9]} 26. Rxd8+
{[%clk 0:00:07]} 26... Rxd8 {[%clk 0:00:14.6]} 27. Rd1 {[%clk 0:00:07.5]} 27...
a5 {[%clk 0:00:11.9]} 28. a3 {[%clk 0:00:07.2]} 28... f5 {[%clk 0:00:09.9]} 29.
Rxd8+ {[%clk 0:00:04.5]} 29... Qxd8 {[%clk 0:00:04.8]} 30. Nd2 {[%clk
0:00:05.1]} 30... Qd5 {[%clk 0:00:05.4]} 31. Qa2 {[%clk 0:00:03.6]} 31... Nd6
{[%clk 0:00:04.6]} 32. Bxd6 {[%clk 0:00:03.1]} 32... Bxd6 {[%clk 0:00:04.9]} 33.
g3 {[%clk 0:00:03.6]} 33... axb4 {[%clk 0:00:04.4]} 34. axb4 {[%clk 0:00:03.5]}
34... f4 {[%clk 0:00:04.5]} 35. gxf4 {[%clk 0:00:03]} 35... Bxf4 {[%clk
0:00:04.4]} 36. Nxc4 {[%clk 0:00:03.3]} 36... Qd1+ {[%clk 0:00:04.1]} 37. Kg2
{[%clk 0:00:03.2]} 37... Qd5+ {[%clk 0:00:03.8]} 38. f3 {[%clk 0:00:03.7]} 38...
Qg5+ {[%clk 0:00:03.9]} 39. Kf1 {[%clk 0:00:04.2]} 39... Qg3 {[%clk 0:00:03.9]}
40. Qg2 {[%clk 0:00:04.7]} 40... Qh4 {[%clk 0:00:04.3]} 41. Qg4 {[%clk
0:00:05.2]} 41... Qf6 {[%clk 0:00:04.5]} 42. Ke2 {[%clk 0:00:04]} 42... g5
{[%clk 0:00:04.7]} 43. h4 {[%clk 0:00:03.7]} 43... Kg7 {[%clk 0:00:04.9]} 44.
hxg5 {[%clk 0:00:04]} 44... hxg5 {[%clk 0:00:05.8]} 45. Kd3 {[%clk 0:00:04.6]}
45... Qd8+ {[%clk 0:00:06.4]} 46. Kc2 {[%clk 0:00:04.5]} 46... Qf6 {[%clk
0:00:06.9]} 47. Kb3 {[%clk 0:00:04.5]} 47... Qg6 {[%clk 0:00:07.5]} 48. Kb2
{[%clk 0:00:04.6]} 48... Qd3 {[%clk 0:00:07.6]} 49. Qxe6 {[%clk 0:00:04.8]}
49... Bd2 {[%clk 0:00:06]} 50. Qe5+ {[%clk 0:00:03.8]} 50... Kg6 {[%clk
0:00:06.4]} 51. Nxd2 {[%clk 0:00:03.8]} 51... Qxd2+ {[%clk 0:00:06.7]} 52. Ka3
{[%clk 0:00:04.4]} 52... Qc1+ {[%clk 0:00:06.7]} 53. Ka4 {[%clk 0:00:04.7]}
53... Qd1+ {[%clk 0:00:07.3]} 54. Ka5 {[%clk 0:00:05]} 54... Qxf3 {[%clk
0:00:07.9]} 55. b5 {[%clk 0:00:05.6]} 55... g4 {[%clk 0:00:08.2]} 56. b6 {[%clk
0:00:06.1]} 56... g3 {[%clk 0:00:08.8]} 57. b7 {[%clk 0:00:05]} 57... Qxb7
{[%clk 0:00:08]} 58. Qxg3+ {[%clk 0:00:05.5]} 58... Kf5 {[%clk 0:00:08.7]} 59.
Qe3 {[%clk 0:00:05.2]} 59... Qa8+ {[%clk 0:00:07]} 60. Kb4 {[%clk 0:00:04.1]}
60... Qb7+ {[%clk 0:00:07.5]} 61. Ka3 {[%clk 0:00:04.3]} 61... Qa6+ {[%clk
0:00:07]} 62. Kb2 {[%clk 0:00:04.5]} 62... Qb5+ {[%clk 0:00:07.3]} 63. Kc1
{[%clk 0:00:04.7]} 63... Qc4 {[%clk 0:00:05.9]} 64. Kd2 {[%clk 0:00:03.8]} 64...
Kf6 {[%clk 0:00:06.1]} 65. Qf3+ {[%clk 0:00:02.7]} 65... Ke6 {[%clk 0:00:05.9]}
66. Qh3+ {[%clk 0:00:02.5]} 66... Kd5 {[%clk 0:00:05.7]} 67. Qh5+ {[%clk
0:00:02.7]} 67... Kc6 {[%clk 0:00:05.7]} 68. Qg6+ {[%clk 0:00:03.3]} 68... Kc5
{[%clk 0:00:05.8]} 69. Qg5+ {[%clk 0:00:03.1]} 69... Kc6 {[%clk 0:00:06.2]} 70.
Qg6+ {[%clk 0:00:03.1]} 70... Kc5 {[%clk 0:00:06.7]} 71. Qe8 {[%clk 0:00:03.7]}
71... Qd5+ {[%clk 0:00:06.1]} 72. Ke3 {[%clk 0:00:04.1]} 72... Qc4 {[%clk
0:00:06.3]} 73. Qc8+ {[%clk 0:00:03.8]} 73... Kd5 {[%clk 0:00:06.6]} 74. Qg8+
{[%clk 0:00:04.3]} 74... Kc5 {[%clk 0:00:07]} 75. Qf8+ {[%clk 0:00:04.8]} 75...
Kd5 {[%clk 0:00:06.9]} 76. Qf5+ {[%clk 0:00:05.4]} 76... Kc6 {[%clk 0:00:07]}
77. Qe4+ {[%clk 0:00:05.6]} 77... Qxe4+ {[%clk 0:00:06.7]} 78. Kxe4 {[%clk
0:00:06.5]} 78... Kc5 {[%clk 0:00:07.4]} 79. Kd3 {[%clk 0:00:07.4]} 79... Kd5
{[%clk 0:00:08]} 80. Ke3 {[%clk 0:00:07.9]} 80... Kc4 {[%clk 0:00:08.2]} 81. Kd2
{[%clk 0:00:08.8]} 81... Kd5 {[%clk 0:00:08.8]} 82. Kd3 {[%clk 0:00:09.7]} 82...
Kc5 {[%clk 0:00:09.4]} 83. c4 {[%clk 0:00:10.6]} 83... Kd6 {[%clk 0:00:09.6]}
84. Kc3 {[%clk 0:00:11.5]} 84... Kc5 {[%clk 0:00:09.9]} 85. Kb3 {[%clk
0:00:11.8]} 85... Kc6 {[%clk 0:00:10.2]} 86. Kb4 {[%clk 0:00:12.4]} 86... Kb6
{[%clk 0:00:10.7]} 87. c5+ {[%clk 0:00:13.3]} 87... Kc6 {[%clk 0:00:11.2]} 88.
Kc4 {[%clk 0:00:14.2]} 88... Kc7 {[%clk 0:00:10.8]} 89. Kd5 {[%clk 0:00:15.1]}
89... Kd7 {[%clk 0:00:11.2]} 90. c6+ {[%clk 0:00:16]} 90... Kc7 {[%clk
0:00:11.7]} 91. Kc5 {[%clk 0:00:16.9]} 91... Kc8 {[%clk 0:00:10.5]} 92. Kc4
{[%clk 0:00:17]} 92... Kc7 {[%clk 0:00:10.6]} 93. Kd5 {[%clk 0:00:17.3]} 93...
Kc8 {[%clk 0:00:10.7]} 94. Kd4 {[%clk 0:00:16.9]} 94... Kc7 {[%clk 0:00:11]} 95.
Kc5 {[%clk 0:00:17.6]} 95... Kc8 {[%clk 0:00:11.2]} 96. Kb6 {[%clk 0:00:17.8]}
96... Kb8 {[%clk 0:00:11.3]} 97. c7+ {[%clk 0:00:17.6]} 97... Kc8 {[%clk
0:00:11.3]} 98. Kc6 {[%clk 0:00:18.5]} 1/2-1/2

[Event "*** Titled Tuesday Blitz"]
[Site "Chess.com"]
[Date "2020.05.26"]
[Round "5"]
[White "JoySpaceman"]
[Black "AEMEffi"]
[Result "1/2-1/2"]
[WhiteElo "2497"]
[BlackElo "2317"]
[TimeControl "180+1"]
[EndTime "10:59:44 PDT"]
[Termination "Game drawn - timeout vs insufficient material"]

1. d4 {[%clk 0:03:00.9]} 1... d5 {[%clk 0:02:59.7]} 2. Nc3 {[%clk 0:03:00.1]}
2... c6 {[%clk 0:03:00.2]} 3. Bf4 {[%clk 0:02:59.9]} 3... Nf6 {[%clk 0:02:59]}
4. e3 {[%clk 0:02:58.2]} 4... h6 {[%clk 0:02:58.4]} 5. Bd3 {[%clk 0:02:54.3]}
5... e6 {[%clk 0:02:49.2]} 6. Nf3 {[%clk 0:02:44.7]} 6... Bd6 {[%clk 0:02:46.9]}
7. Qe2 {[%clk 0:02:35.6]} 7... a6 {[%clk 0:02:27.4]} 8. h3 {[%clk 0:02:16.7]}
8... b5 {[%clk 0:02:10.1]} 9. Bxd6 {[%clk 0:01:38.1]} 9... Qxd6 {[%clk
0:02:08.7]} 10. e4 {[%clk 0:01:38.7]} 10... Qc7 {[%clk 0:01:51.5]} 11. g4 {[%clk
0:01:31.3]} 11... Bb7 {[%clk 0:01:48.1]} 12. g5 {[%clk 0:01:14]} 12... hxg5
{[%clk 0:01:41.7]} 13. e5 {[%clk 0:01:13.3]} 13... Nfd7 {[%clk 0:01:23.8]} 14.
Nxg5 {[%clk 0:01:13.4]} 14... Nf8 {[%clk 0:01:23.5]} 15. Qf3 {[%clk 0:01:09.1]}
15... c5 {[%clk 0:01:20.3]} 16. dxc5 {[%clk 0:00:56.6]} 16... Qxe5+ {[%clk
0:01:18.3]} 17. Qe3 {[%clk 0:00:52.9]} 17... Qxe3+ {[%clk 0:01:01.7]} 18. fxe3
{[%clk 0:00:53.8]} 18... Nbd7 {[%clk 0:00:57.7]} 19. b4 {[%clk 0:00:52]} 19...
Ke7 {[%clk 0:00:22.5]} 20. e4 {[%clk 0:00:49]} 20... f6 {[%clk 0:00:17.6]} 21.
Nf3 {[%clk 0:00:46.2]} 21... d4 {[%clk 0:00:17.9]} 22. Nxd4 {[%clk 0:00:44.8]}
22... Ne5 {[%clk 0:00:18.2]} 23. O-O-O {[%clk 0:00:42.1]} 23... Rh4 {[%clk
0:00:16.1]} 24. Rdg1 {[%clk 0:00:36.8]} 24... Nfg6 {[%clk 0:00:15.2]} 25. Nf3
{[%clk 0:00:33.4]} 25... Kf7 {[%clk 0:00:14.4]} 26. Nxh4 {[%clk 0:00:33.4]}
26... Nxh4 {[%clk 0:00:15.3]} 27. Rg3 {[%clk 0:00:31.3]} 27... g5 {[%clk
0:00:13.5]} 28. Rf1 {[%clk 0:00:30.8]} 28... a5 {[%clk 0:00:11.1]} 29. Nxb5
{[%clk 0:00:28.7]} 29... Ke7 {[%clk 0:00:07.6]} 30. a3 {[%clk 0:00:27]} 30...
axb4 {[%clk 0:00:07.3]} 31. Bc4 {[%clk 0:00:20.5]} 31... Nxc4 {[%clk 0:00:06.8]}
32. Rd1 {[%clk 0:00:12.8]} 32... bxa3 {[%clk 0:00:05.3]} 33. Kb1 {[%clk
0:00:13.3]} 33... a2+ {[%clk 0:00:04.9]} 34. Ka1 {[%clk 0:00:13.9]} 34... Bxe4
{[%clk 0:00:05.3]} 35. Rc1 {[%clk 0:00:11.6]} 35... Bc6 {[%clk 0:00:04.6]} 36.
Nd6 {[%clk 0:00:10.6]} 36... Nxd6 {[%clk 0:00:03.8]} 37. cxd6+ {[%clk
0:00:11.5]} 37... Kxd6 {[%clk 0:00:04.4]} 38. Rd3+ {[%clk 0:00:12.4]} 38... Ke7
{[%clk 0:00:04.7]} 39. Rc3 {[%clk 0:00:12.3]} 39... Bd5 {[%clk 0:00:05.5]} 40.
Rc7+ {[%clk 0:00:12.3]} 40... Kd6 {[%clk 0:00:05.4]} 41. Rf7 {[%clk 0:00:13.1]}
41... f5 {[%clk 0:00:05.8]} 42. Rg7 {[%clk 0:00:13.3]} 42... Ke5 {[%clk
0:00:05.8]} 43. Rxg5 {[%clk 0:00:13.4]} 43... Nf3 {[%clk 0:00:06.7]} 44. Rg3
{[%clk 0:00:13.1]} 44... Nd2 {[%clk 0:00:07]} 45. Re3+ {[%clk 0:00:13.3]} 45...
Kf4 {[%clk 0:00:07.2]} 46. Rd3 {[%clk 0:00:12.7]} 46... Ne4 {[%clk 0:00:06.9]}
47. Rf1+ {[%clk 0:00:12.6]} 47... Ke5 {[%clk 0:00:06.2]} 48. Re3 {[%clk
0:00:11.3]} 48... Bc4 {[%clk 0:00:06.1]} 49. Rfe1 {[%clk 0:00:10.5]} 49... Kd4
{[%clk 0:00:05.9]} 50. Rf3 {[%clk 0:00:09.2]} 50... Ra7 {[%clk 0:00:04.9]} 51.
Rd1+ {[%clk 0:00:09.4]} 51... Ke5 {[%clk 0:00:04.6]} 52. h4 {[%clk 0:00:09.4]}
52... Rh7 {[%clk 0:00:04.2]} 53. Ra3 {[%clk 0:00:08.8]} 53... Rxh4 {[%clk
0:00:04]} 54. Ra5+ {[%clk 0:00:09.7]} 54... Kf6 {[%clk 0:00:04.1]} 55. Ra3
{[%clk 0:00:10.2]} 55... Bd5 {[%clk 0:00:04]} 56. Kb2 {[%clk 0:00:10.6]} 56...
Rh2 {[%clk 0:00:03.4]} 57. Ra4 {[%clk 0:00:10.6]} 57... f4 {[%clk 0:00:03.3]}
58. Rad4 {[%clk 0:00:10.4]} 58... f3 {[%clk 0:00:03.1]} 59. Rf1 {[%clk
0:00:11.1]} 59... f2 {[%clk 0:00:03.2]} 60. Rd3 {[%clk 0:00:12]} 60... Ke5
{[%clk 0:00:03.5]} 61. Ra3 {[%clk 0:00:11.2]} 61... Bc4 {[%clk 0:00:03.4]} 62.
Ra5+ {[%clk 0:00:10.9]} 62... Kf4 {[%clk 0:00:03.2]} 63. Ra1 {[%clk 0:00:10.2]}
63... f1=Q {[%clk 0:00:02.3]} 64. Rxf1+ {[%clk 0:00:11.1]} 64... Bxf1 {[%clk
0:00:01.8]} 65. Rxa2 {[%clk 0:00:12]} 65... Be2 {[%clk 0:00:02]} 66. Ra8 {[%clk
0:00:12.9]} 66... Bf3 {[%clk 0:00:02.6]} 67. Rf8+ {[%clk 0:00:13.8]} 67... Ke3
{[%clk 0:00:02.6]} 68. Rg8 {[%clk 0:00:14.7]} 68... e5 {[%clk 0:00:03.2]} 69.
Kb3 {[%clk 0:00:15]} 69... Kf4 {[%clk 0:00:03.7]} 70. c4 {[%clk 0:00:15.9]}
70... Bg4 {[%clk 0:00:04.1]} 71. Kb4 {[%clk 0:00:16.8]} 71... Bf5 {[%clk
0:00:04.9]} 72. Rf8 {[%clk 0:00:17.5]} 72... Rb2+ {[%clk 0:00:04.6]} 73. Ka3
{[%clk 0:00:17.8]} 73... Rc2 {[%clk 0:00:05.5]} 74. Kb4 {[%clk 0:00:18.7]} 74...
Rb2+ {[%clk 0:00:05.6]} 75. Ka3 {[%clk 0:00:18.9]} 75... Rb7 {[%clk 0:00:06.5]}
76. Rd8 {[%clk 0:00:18.6]} 76... Nc5 {[%clk 0:00:06.9]} 77. Rd5 {[%clk
0:00:18.3]} 77... Ra7+ {[%clk 0:00:07.8]} 78. Kb4 {[%clk 0:00:18.2]} 78... Ne6
{[%clk 0:00:08.7]} 79. Rd1 {[%clk 0:00:18]} 79... Nd4 {[%clk 0:00:09.6]} 80. Kc5
{[%clk 0:00:17.9]} 80... Nf3 {[%clk 0:00:09.8]} 81. Rf1 {[%clk 0:00:17.9]} 81...
e4 {[%clk 0:00:10.7]} 82. Kb6 {[%clk 0:00:18.3]} 82... e3 {[%clk 0:00:11.5]} 83.
Kxa7 {[%clk 0:00:18.3]} 83... e2 {[%clk 0:00:11.9]} 84. Rc1 {[%clk 0:00:18.6]}
84... e1=Q {[%clk 0:00:11]} 85. Rxe1 {[%clk 0:00:18.8]} 85... Nxe1 {[%clk
0:00:11.9]} 86. c5 {[%clk 0:00:19.3]} 86... Ke5 {[%clk 0:00:11.8]} 87. c6 {[%clk
0:00:19]} 87... Kd6 {[%clk 0:00:11.8]} 88. Kb6 {[%clk 0:00:19.5]} 88... Nd3
{[%clk 0:00:11.8]} 89. c7 {[%clk 0:00:19.6]} 89... Ne5 {[%clk 0:00:10.9]} 90.
Kb7 {[%clk 0:00:18.6]} 90... Be4+ {[%clk 0:00:11]} 91. Kb6 {[%clk 0:00:16.9]}
91... Nd7+ {[%clk 0:00:10.9]} 92. Kb5 {[%clk 0:00:15.3]} 92... Kxc7 {[%clk
0:00:11.8]} 93. Kc4 {[%clk 0:00:15.7]} 93... Kd6 {[%clk 0:00:11.6]} 94. Kd4
{[%clk 0:00:16.6]} 94... Bd5 {[%clk 0:00:12]} 95. Kc3 {[%clk 0:00:16.8]} 95...
Kc5 {[%clk 0:00:12.1]} 96. Kd3 {[%clk 0:00:17.2]} 96... Ne5+ {[%clk 0:00:12.1]}
97. Ke3 {[%clk 0:00:18.1]} 97... Bc6 {[%clk 0:00:11.6]} 98. Kf4 {[%clk 0:00:19]}
98... Kd4 {[%clk 0:00:11.9]} 99. Kf5 {[%clk 0:00:18.8]} 99... Bd5 {[%clk
0:00:12.1]} 100. Kf6 {[%clk 0:00:18.2]} 100... Nd7+ {[%clk 0:00:11.3]} 101. Kf5
{[%clk 0:00:19.1]} 101... Nc5 {[%clk 0:00:10.5]} 102. Kf4 {[%clk 0:00:20]}
102... Ne4 {[%clk 0:00:09.9]} 103. Kf5 {[%clk 0:00:20.9]} 103... Bc4 {[%clk
0:00:09.8]} 104. Kf4 {[%clk 0:00:21.8]} 104... Be2 {[%clk 0:00:09]} 105. Kf5
{[%clk 0:00:22.7]} 105... Bh5 {[%clk 0:00:08.6]} 106. Kf4 {[%clk 0:00:23.6]}
106... Kd5 {[%clk 0:00:08.6]} 107. Kf5 {[%clk 0:00:24.5]} 107... Nd6+ {[%clk
0:00:08.5]} 108. Kf6 {[%clk 0:00:24.8]} 108... Bg4 {[%clk 0:00:08.4]} 109. Kg5
{[%clk 0:00:25.1]} 109... Be6 {[%clk 0:00:07.7]} 110. Kf4 {[%clk 0:00:26]}
110... Nc4 {[%clk 0:00:06.6]} 111. Kg5 {[%clk 0:00:26.1]} 111... Ke5 {[%clk
0:00:06.6]} 112. Kg6 {[%clk 0:00:26.6]} 112... Nd6 {[%clk 0:00:06]} 113. Kg5
{[%clk 0:00:27.5]} 113... Ne4+ {[%clk 0:00:05.8]} 114. Kg6 {[%clk 0:00:28.4]}
114... Bd5 {[%clk 0:00:05.1]} 115. Kg7 {[%clk 0:00:28.6]} 115... Kf5 {[%clk
0:00:04.9]} 116. Kf8 {[%clk 0:00:28.8]} 116... Ke6 {[%clk 0:00:02.7]} 117. Ke8
{[%clk 0:00:29.3]} 117... Nd6+ {[%clk 0:00:03]} 118. Kf8 {[%clk 0:00:30.2]}
118... Nf7 {[%clk 0:00:02.8]} 119. Kg7 {[%clk 0:00:31.1]} 119... Kf5 {[%clk
0:00:02.2]} 120. Kf8 {[%clk 0:00:31.1]} 120... Kf6 {[%clk 0:00:02.3]} 121. Ke8
{[%clk 0:00:31.7]} 121... Ke6 {[%clk 0:00:02.1]} 122. Kf8 {[%clk 0:00:31.6]}
122... Ne5 {[%clk 0:00:01.1]} 123. Kg7 {[%clk 0:00:32.5]} 123... Kf5 {[%clk
0:00:01.2]} 124. Kh6 {[%clk 0:00:33.4]} 1/2-1/2